Cogmind - Beta 16.1 @@@ ROGUE MODE // 2026.03.13 @ 18:59:31 Player: TheSkyeDoctor Result: Destroyed by Y-45 Defender with Heavy Assault Rifle Performance ------------- Evolutions (0) 0 Regions Visited (2) 400 Robots Destroyed (11) 55 Value Destroyed (205) 205 Prototype IDs (0) 0 Alien Tech Used (0) 0 Bonus (0) 0 TOTAL SCORE: 660 Bonus ------- None Cogmind --------- Core Integrity 0/250 Matter 248/300 Energy 99/100 System Corruption 0% Temperature Cool (9) Movement Core (50) Location -10/Subcaves Parts ------- > --- POWER (1) -------- (None) > --- PROPULSION (2) --- (None) > --- UTILITY (2) ------ (None) > --- WEAPON (2) ------- (None) > --- INVENTORY (5) ---- High-capacity Battery (250) Transport Network Coupler Peak State ------------ > --- POWER ------------ Light Ion Engine > --- PROPULSION ------- Light Treads Light Treads > --- UTILITY ---------- Small Storage Unit Seismic Detector > --- WEAPON ----------- Medium Laser Small Laser > --- INVENTORY -------- Light Ion Engine Wheel Compact Wheel Improved Terrain Scanner [Rating: 7] Favorites ----------- Power Light Ion Engine Engine Light Ion Engine Propulsion Light Treads Treads Light Treads Wheel Compact Wheel Utility Small Storage Unit Device Seismic Detector Storage Small Storage Unit Weapon Medium Laser Energy Gun Medium Laser Special Weapon Mining Laser Build | -11 -10 -10 ------- Run | Yrd Mat Sub Slots Evolved . | . . . Power . | . . . Propulsion . | . . . Utility . | . . . Weapon . | . . . Parts Attached 14 | 7 6 1 Power 2 | 1 1 . Engine 2 | 1 1 . Core . | . . . Reactor . | . . . Propulsion 5 | 2 3 . Treads 3 | 2 1 . Leg . | . . . Wheel 2 | . 2 . Hover . | . . . Flight . | . . . Utility 4 | 2 1 1 Device 2 | 1 . 1 Storage 2 | 1 1 . Processor . | . . . Hackware . | . . . Protection . | . . . Artifact . | . . . Weapon 3 | 2 1 . Energy Gun 2 | 2 . . Energy Cannon . | . . . Ballistic Gun . | . . . Ballistic Cannon . | . . . Launcher . | . . . Special Weapon 1 | . 1 . Impact Weapon . | . . . Slashing Weapon . | . . . Piercing Weapon . | . . . Special Melee Weapon . | . . . Unidentified Prototypes . | . . . Parts Lost 10 | . 8 2 Power 1 | . 1 . Propulsion 5 | . 3 2 Utility 1 | . 1 . Weapon 3 | . 3 . Highest Loss Streak 7 | . 7 1 To Critical Strikes . | . . . Average Backups 4 | 2 4 2 Power . | . . . Propulsion 1 | 1 1 . Utility 1 | . 1 2 Weapon . | . . . Tool/Special . | . . . Unused Backups 1 | . . 1 Power . | . . . Propulsion . | . . . Utility 1 | . . 1 Weapon . | . . . Tool/Special . | . . . Average Slot Usage (%) 89 | . 93 64 Engine 13 | . 12 14 Treads 20 | . 23 . Wheel 6 | . 4 21 Device 10 | . 11 3 Storage 17 | . 16 24 Energy Gun 16 | . 19 . Special Weapon 3 | . 4 . Peak Build Rating 7 | 7 7 6 Average Rating 6 | 5 6 4 On Entrance 4 | . 7 5 Avg Prop Armor Cover (%) . | . . . Naked Turns 1 | . . 1 Heaviest Build 12 | 12 12 12 Greatest Support 40 | 40 40 26 Greatest Overweight (x) 2 | 1 . 2 Average Overweight (x) . | . . . Largest Inventory Capacity 8 | 8 8 8 Average Capacity 7 | 7 8 7 Most Carried 7 | 5 7 2 Average Carried 4 | 3 4 2 Final Capacity 8 | 8 8 5 Final Carried 5 | 5 2 2 Class Distribution -------------------- 100% | Mutant Dominant Class ---------------- Mutant | -10/Materials Mutant | -10/Subcaves Resources | -11 -10 -10 ----------- Run | Yrd Mat Sub Matter Collected 316 | 270 46 . Remotely . | . . . Salvage Created 496 | 152 344 . Parts 26 | 13 13 . Haulers Intercepted 1 | . 1 . Recyclers Shooed 3 | 1 2 . Parts Field Recycled . | . . . Retrieved Matter . | . . . Parts Self-Destructed 1 | . . 1 Prevented . | . . . Parts Restored . | . . . Kills | -11 -10 -10 ------- Run | Yrd Mat Sub Combat Hostiles Destroyed 5 | . 5 . Guns 5 | . 5 . Classes Destroyed 4 | 2 2 . Tunneler 3 | 3 . . Hauler 1 | . 1 . Recycler 2 | 1 1 . Grunt 5 | . 5 . Best Kill Streak 4 | 4 3 . Combat Bots Only 2 | . 2 . Max Kills in Single Turn 1 | 1 1 . Gunslinging . | . . . Exploded . | . . . Melee . | . . . Uniques/NPCs Destroyed . | . . . Combat | -11 -10 -10 -------- Run | Yrd Mat Sub Hostile Shots Fired 128 | . 117 11 Missed 42 | . 38 4 Hits 86 | . 79 7 Projectile 86 | . 79 7 Critical Strikes 2 | . 2 . Damage Taken 1143 | . 987 156 Core 257 | . 184 73 Absorbed by Shields . | . . . Core Remaining (%) 100 | 100 . . Volleys Fired 62 | 6 56 . Largest 2 | 2 2 . Hottest 150 | 90 150 . Shots Fired 105 | 12 93 . Gun 95 | 12 83 . Cannon . | . . . Launcher . | . . . Special 10 | . 10 . Kinetic . | . . . Thermal 105 | 12 93 . Explosive . | . . . Electromagnetic . | . . . Robot Hit Streak 6 | 6 5 . Robot Miss Streak 3 | 3 3 . Penetration Max . | . . . Secondary Targets . | . . . Shots Hit Robots 46 | 7 39 . Core Hits 20 | 5 15 . Critical Kills . | . . . Critical Parts Destroyed . | . . . Critical Strikes 2 | 1 1 . Burn 2 | 1 1 . Melee Attacks . | . . . Impact . | . . . Slashing . | . . . Piercing . | . . . Sneak Attacks . | . . . Combat Hostiles . | . . . Follow-up Attacks . | . . . Damage Inflicted 564 | 82 482 . Guns 564 | 82 482 . Cannons . | . . . Explosions . | . . . Melee . | . . . Ramming . | . . . Kinetic . | . . . Thermal 564 | 82 482 . Explosive . | . . . Electromagnetic . | . . . Impact . | . . . Slashing . | . . . Piercing . | . . . Highest Corruption . | . . . Average Corruption . | . . . Corruption Purged . | . . . Corruption Blocked . | . . . Overload Shots . | . . . Overflow Damage . | . . . Projectiles . | . . . Explosions . | . . . Melee . | . . . Knockbacks . | . . . Impact . | . . . Kinetic . | . . . Secondary . | . . . Self-Inflicted Damage . | . . . Shots . | . . . Rammed . | . . . Targets Rammed . | . . . Kicked . | . . . Crushed . | . . . Highest Temperature 412 | 150 412 . Average Temperature 152 | 69 160 . Received Heat Transfer 621 | . 585 36 Effects 6 | . 6 . Shutdowns 1 | . 1 . Interference 4 | . 4 . Matter Decay 1 | . 1 . Siege Activations . | . . . Martial Activations . | . . . Shielding Activations . | . . . Robots Disrupted . | . . . Combat Hostiles . | . . . Robots Corrupted . | . . . Combat Hostiles . | . . . Parts Fried . | . . . Impact Corruptions . | . . . Robots Melted . | . . . Combat Hostiles . | . . . Parts Melted 6 | 2 4 . Heat Transferred 1707 | 297 1410 . Parts Sabotaged . | . . . Parts Stolen . | . . . Parts Stripped . | . . . Power Chain Reactions . | . . . Alert | -11 -10 -10 ------- Run | Yrd Mat Sub Maximum Alert Level . | . . . Low Security (%) 100 | 100 100 . Level 1 . | . . . Level 2 . | . . . Level 3 . | . . . Level 4 . | . . . Level 5 . | . . . High Security . | . . . Max Security . | . . . Peak Influence 55 | 10 55 . Initial . | . . . Average 9 | 1 11 . Influence Increases 177 | 20 157 . Destroy 0b10 Robot/C 100 | . 100 . Destroy 0b10 Robot/NC 30 | 20 10 . Destroy Leader 12 | . 12 . Destroy Structure 5 | . 5 . Lose Combat Pursuer 30 | . 30 . Influence Decreases 177 | 20 135 22 Entered New Map 11 | . . 11 Time Decay 145 | 20 115 10 Lost Part 21 | . 20 1 Squads Dispatched 2 | . 2 . Investigation 1 | . 1 . Extermination . | . . . Reinforcement 1 | . 1 . Assault . | . . . Garrison . | . . . Intercept . | . . . Searches Triggered . | . . . Construction Impeded . | . . . Haulers Reinforced . | . . . Active Scanning Responses . | . . . Cargo Convoy Interrupts . | . . . Stealth | -11 -10 -10 --------- Run | Yrd Mat Sub Distress Signals 1 | . 1 . Communications Jammed . | . . . Distress Signals . | . . . Times Spotted 20 | . 18 2 Peak Tracking Total 7 | . 7 2 Tactical Retreats 1 | . 1 . Traps | -11 -10 -10 ------- Run | Yrd Mat Sub Traps Triggered 3 | . 1 2 Indirectly . | . . . Trap Hack Attempts . | . . . Triggered . | . . . Disarmed . | . . . Reprogrammed . | . . . Reused . | . . . Traps Extracted . | . . . Installed . | . . . Triggered . | . . . Machines | -11 -10 -10 ---------- Run | Yrd Mat Sub Machines Disabled . | . . . Max in Single Turn . | . . . Machines Repaired . | . . . Machines Dismantled . | . . . Machines Sabotaged . | . . . Overloaded Fab Kills . | . . . Hacking | -11 -10 -10 --------- Run | Yrd Mat Sub Machines Accessed . | . . . Terminals . | . . . Fabricators . | . . . Repair Stations . | . . . Recycling Units . | . . . Scanalyzers . | . . . Garrison Access . | . . . Total Hacks . | . . . Successful . | . . . Failed . | . . . Catastrophic . | . . . Database Lockouts . | . . . Manual . | . . . Terminals . | . . . Fabricators . | . . . Repair Stations . | . . . Recycling Units . | . . . Scanalyzers . | . . . Garrison Access . | . . . Terminal Hacks . | . . . Fabricator Hacks . | . . . Repair Station Hacks . | . . . Recycling Unit Hacks . | . . . Scanalyzer . | . . . Garrison Access Hacks . | . . . Unauthorized Hacks . | . . . Terminals . | . . . Fabricators . | . . . Repair Stations . | . . . Recycling Units . | . . . Scanalyzers . | . . . Garrison Access . | . . . Data Cores Recovered . | . . . Used . | . . . Hacking Detections . | . . . Full Trace Events . | . . . Feedback Events . | . . . Feedback Blocked . | . . . Robot Schematics Acquired . | . . . Robots Built . | . . . Authchips . | . . . Time . | . . . Total Robot Build Rating . | . . . Part Schematics Acquired . | . . . Parts Built . | . . . Authchips . | . . . Time . | . . . Total Part Build Rating . | . . . Part Studies Acquired . | . . . Parts Repaired . | . . . Time . | . . . Parts Recycled . | . . . Recycled Matter . | . . . Retrieved Matter . | . . . Retrieved Components . | . . . Parts Scanalyzed . | . . . Part Schematics Acquired . | . . . Parts Damaged . | . . . Bothacking | -11 -10 -10 ------------ Run | Yrd Mat Sub Used RIF Installer . | . . . Robots Hacked . | . . . Non-combat . | . . . Combat . | . . . Robot Hacks Applied . | . . . Relay Couplers Released . | . . . Fabnet Peak Effective % . | . . . Robots Rewired . | . . . Allies Hacked . | . . . Hacks Repelled . | . . . Allies | -11 -10 -10 -------- Run | Yrd Mat Sub Total Allies . | . . . Largest Group . | . . . Highest-Rated Group . | . . . Highest-Rated Ally . | . . . Total Orders . | . . . Ally Attacks . | . . . Total Damage . | . . . Kills . | . . . Allies Corrupted . | . . . Allies Melted . | . . . Intel | -11 -10 -10 ------- Run | Yrd Mat Sub Active Infowar (turns) 481 | 57 399 25 Terrain 25 | . . 25 Seismic 456 | 57 399 . Robot Analysis Total . | . . . Derelict Logs Recovered . | . . . Drone Launches . | . . . Drone Recoveries . | . . . Exploration | -11 -10 -10 ------------- Run | Yrd Mat Sub Turns Passed 736 | 148 519 69 Spaces Moved 395 | 78 252 65 Core 14 | 10 . 4 Treads 227 | 68 159 . Legs . | . . . Wheels 154 | . 93 61 Hover . | . . . Flight . | . . . Fastest Speed 50 | 50 90 50 Average Speed 130 | 147 134 96 Slowest Speed 160 | 160 160 150 Overloaded Moves . | . . . Propulsion Burnouts . | . . . Robots Hopped . | . . . Potential Cave-ins 2 | . 2 . Cave-ins Triggered . | . . . Exploration Rate (%) 20 | 4 52 4 Regions Visited 2 Branch Regions 1 Pre-discovered Areas . | . . . Known Exits Taken . | . . . Unknown Exits Taken 2 | 1 1 . Scrap Searched . | . . . Spaces Dug 6 | . 6 . Terrain Destroyed 7 | . 7 . Melee . | . . . Projectile 7 | . 7 . AOE . | . . . Terrain Rammed . | . . . Walls Destroyed . | . . . Machines Disabled . | . . . Actions | -11 -10 -10 --------- Run | Yrd Mat Sub Total 485 | 96 319 70 Wait 6 | . 2 4 Move 393 | 77 251 65 Hop . | . . . Pick Up 9 | 6 3 . Fast Attach 6 | 6 . . Attach 7 | 1 6 . Detach . | . . . Swap 2 | . 1 1 Drop . | . . . Fire 62 | 6 56 . Melee . | . . . Ram . | . . . Kick . | . . . Crush . | . . . Escape Stasis . | . . . Rewire . | . . . Trap . | . . . Miscellaneous . | . . . Route ------- -11/Scrapyard -10/Materials (discovered 2 exits: [*Min] / [*Sub]) -10/Subcaves History --------- Turn | Location | Event 2 | -11/Scrapyard | Met Revision 17 49 | -11/Scrapyard | Discovered new exit (range 16) 149 | -11/Scrapyard | Entered Materials 303 | -10/Materials | Build established: Mutant 493 | -10/Materials | Discovered new exit (range 15) 602 | -10/Materials | Core integrity fell below 50% 614 | -10/Materials | Lost 7 parts (1p3n1u2w) 657 | -10/Materials | Discovered new exit (range 12) 668 | -10/Materials | Entered Subcaves 692 | -10/Subcaves | Core integrity fell below 20% 736 | -10/Subcaves | Released all parts (3) 737 | -10/Subcaves | Destroyed by Y-45 Defender with Heavy Assault Rifle Last Messages --------------- 00658_ T-07 Excavator is excavating. 00659_ U-05 Engineer lays Concrete. 00661_ U-05 Engineer builds a Wall. 00662_ T-07 Excavator is excavating. 00662_ U-05 Engineer lays Concrete. 00666_ T-07 Excavator is excavating. 00666_ U-05 Engineer lays Concrete. LOCATION=UNKNOWN AMBIENT_HEAT=-10 GOAL=ESCAPE 00687_ Triggered Piercing Trap. 00687_ Spikes shoot up from the floor. 00687_ Critical hit (Impale). 00691_ Triggered Piercing Trap. 00691_ Spikes shoot up from the floor. 00691_ Wheel destroyed. 00733_ Com. Wheel destroyed. 00736_ Released Lgt. Ion Engine. 00736_ Released Sml. Storage Unit. 00736_ Released Imp. Terrain Scanner. Map ----- +----------------------------------------------------+ | ????????????????????????????????????????????? | | ????????????????????????????????????????????? | | ????????????????????????????????????????????? | | ????????????????????????????????????????????? | | ????????????????????????????????????????????? | | ????????????????????????????????????????????? | | ????????????????????????????????????????????? | | ????????????????????????????????????????????? | | ????????????????????????????????????????????? | | ????????????????????????????????????????????? | | ???????????????????? ??????????????????????? | | ???????????????????? ??????????????????????? | | ???????????????????? ??????????????????????? | | ???????????????????? #?????????????????????? | | ???????????????????? #?????????????????????? | | ???????????????????? #?????????????????????? | | ???????????????##??# ??????????????????????? | | ????????????#### ### ??????????????????????? | | ????????????# ??????????????????????? | | ????????????# ??????????????????????? | | ????????????# ??????????????????????? | | ??????????#?# ??????????????????????? | | ????????????# #??????????????????????? | | ??????????????# ##?????????????????????? | | ???????????????# g #?????????????????????? | | ???????????????# Y @ #?????????????????????? | | ???????????????## ##????????????????????? | | ????????????????# !*! #????????????????????? | | ????????????????## #####????????????????? | | ?????????????????# ## ###??????????????? | | ?????????#??????## ##?????????????? | | ????????????????# ## #?????????????? | | ????????????????# ## ##????????????? | | ????????????????## ## #????????????? | | ?????????????????##### ## #????????????? | | ????????????????#???### #????????????? | | ????????????????????# #????????????? | | ???????????????????## ##????????????? | | ??????????????????## ##?????????????? | | ??????????????????# ## ##???#??????????? | | ??????????????????# # ##???????????????? | | ??????????????????# # ##????????????????? | | ??????????????????## # ##?#???#??????????? | | ???????????????????## ^#?????#??????????? | | ????????????????????# #####????????????? | | ????????????????????## ^## #????#???????? | | ?????????????????????## ^ #????????????? | | ??????????????????????##^ ###????????????? | | ???????????????#???????## ##??????????????? | | ????????????????????????#####???????????????? | +----------------------------------------------------+ Best States ------------- Heat Dissipation 25 Energy Generation 10 Energy Capacity 375 Matter Stores 300 Matter Capacity 300 Sight Range 16 Terrain Scan Range 16 Terrain Scan Density 10 Evasion (%) 50 Recoil Reduction 2 Item Schematics ----------------- None Robot Schematics ------------------ None Fabricated ------------ Nothing Repaired ---------- Nothing Studied --------- None Alien Tech Used ----------------- None Achievements -------------- None Challenges ------------ None Game ------ Seed PowerInsulationPrototype Manual? 0 Play Time 00:05:22 Cumulative 63.0 hours Start 2026.03.13 @ 18:54:50 End 2026.03.13 @ 18:59:31 Sessions 1 Manual Loads 0 Difficulty Rogue Special Mode None Game No. 145 Rogue 145 Adventurer 0 Explorer 0 Win Type - Total 0 Types 0/0/0/0/0/0/0/0/0/0 Lore% 36 Gallery% 42 Achievement% 33 Wizard Run 0 Options --------- Layout 2 ASCII 0 Keyboard 1 Movement Arrows Keybinds 0 Fullscreen 1 Font 24/Smallcaps Map View 50x44 Zoom Use 0% Tactical HUD 1 Map Filters NONE Filters NONE Steam 1 RUN: 16ec92dd-628f-465d-afbd-889d8e46a74e